bitfinex-derivatives/quotes_BTCF0:USTF0_20260221
["timestamp","ask_amount","ask_price","bid_price","bid_amount"]
[1771649004249,0.01476,67778.0,67773.0,0.01476]
[1771649005349,0.01476,67777.0,67772.0,0.014761]
[1771649005552,0.01476,67777.0,67768.0,0.014761]
[1771649005752,0.01476,67776.0,67770.0,0.014761]
[1771649005951,0.01476,67777.0,67771.0,0.014761]
[1771649008260,0.01476,67777.0,67772.0,0.014761]
[1771649013557,0.01476,67777.0,67771.0,0.014761]
[1771649013755,0.01476,67777.0,67772.0,0.014761]
[1771649018758,0.01476,67778.0,67772.0,0.014761]
[1771649023466,0.014759,67781.0,67775.0,0.01476]
[1771649024369,0.014759,67781.0,67776.0,0.01476]
[1771649026567,0.014757,67790.0,67778.0,0.014759]
[1771649026770,0.014758,67787.0,67781.0,0.029518]
[1771649027066,0.014758,67787.0,67782.0,0.014759]
[1771649030071,0.029516,67787.0,67782.0,0.014759]
[1771649031079,0.014758,67787.0,67782.0,0.014759]
[1771649031875,0.029516,67787.0,67782.0,0.014759]
[1771649032374,0.014758,67787.0,67782.0,0.014759]
[1771649033074,0.029516,67787.0,67782.0,0.014759]
[1771649033265,0.014758,67785.0,67781.0,0.014759]
[1771649033876,0.014759,67781.0,67775.0,0.01476]
[1771649034270,0.014759,67781.0,67761.0,0.014763]
[1771649034271,0.014761,67772.0,67767.0,0.014762]
[1771649034660,0.029522,67772.0,67764.0,0.014762]
[1771649034969,0.014761,67772.0,67766.0,0.014762]
[1771649035276,0.014761,67773.0,67766.0,0.014762]
[1771649035567,0.01476,67774.0,67768.0,0.014762]
[1771649036063,0.01476,67774.0,67768.0,0.029523]
[1771649036669,0.01476,67774.0,67769.0,0.014761]
[1771649037977,0.01476,67775.0,67769.0,0.014761]
[1771649041279,0.01476,67776.0,67769.0,0.014761]
[1771649041775,0.01476,67776.0,67770.0,0.014761]
[1771649042876,0.01476,67778.0,67760.0,0.18129045]
[1771649042877,0.01476,67774.0,67765.0,0.014762]
[1771649043079,0.014761,67771.0,67765.0,0.014762]
[1771649043278,0.014763,67764.0,67756.0,0.014764]
[1771649043477,0.014763,67764.0,67758.0,0.014764]
[1771649043680,0.014762,67765.0,67758.0,0.014764]
[1771649046383,0.014763,67764.0,67758.0,0.014764]
[1771649047686,0.029526,67764.0,67758.0,0.014764]
[1771649047985,0.014763,67764.0,67757.0,0.014764]
[1771649052074,0.014763,67764.0,67758.0,0.00084]
[1771649052275,0.014763,67764.0,67757.0,0.014764]
[1771649054375,0.014763,67764.0,67758.0,0.014764]
[1771649056589,0.014761,67773.0,67754.0,0.014765]
[1771649056590,0.014761,67769.0,67761.0,0.014763]
[1771649056888,0.014761,67769.0,67761.0,0.029526]
[1771649057086,0.014762,67768.0,67761.0,0.029526]
[1771649057492,0.014762,67768.0,67761.0,0.014763]
[1771649058184,0.014762,67768.0,67761.0,0.029526]
[1771649058584,0.014762,67768.0,67761.0,0.014763]
[1771649059492,0.014762,67768.0,67761.0,0.029526]
[1771649060285,0.014759,67780.0,67765.0,0.014762]
[1771649060490,0.014761,67770.0,67764.0,0.014762]
[1771649063096,0.01476,67776.0,67762.0,0.014763]
[1771649063294,0.014762,67768.0,67762.0,0.014763]
[1771649067297,0.014761,67769.0,67763.0,0.014763]
[1771649071399,0.014761,67769.0,67764.0,0.014762]
[1771649073399,0.014761,67770.0,67764.0,0.029524]
[1771649075201,0.014761,67770.0,67765.0,0.014762]
[1771649077301,0.014761,67769.0,67765.0,0.014762]
[1771649079303,0.014761,67769.0,67764.0,0.014762]
[1771649080302,0.014762,67768.0,67764.0,0.014762]
[1771649081103,0.014762,67768.0,67763.0,0.014763]
[1771649084505,0.014762,67768.0,67762.0,0.014763]
[1771649085305,0.014761,67769.0,67763.0,0.014763]
[1771649089308,0.014761,67770.0,67763.0,0.014763]
[1771649090310,0.014761,67770.0,67764.0,0.014762]
[1771649090811,0.014761,67770.0,67765.0,0.014762]
[1771649091215,0.014761,67770.0,67750.0,0.014765]
[1771649091506,0.014762,67766.0,67756.0,0.014764]
[1771649091714,0.014762,67766.0,67760.0,0.014763]
[1771649095310,0.014762,67765.0,67758.0,0.029528]
[1771649096307,0.014763,67764.0,67754.0,0.014765]
[1771649096606,0.014763,67764.0,67755.0,0.014764]
[1771649097600,0.014763,67763.0,67757.0,0.014764]
[1771649098311,0.014763,67764.0,67758.0,0.014764]
[1771649098707,0.15731845,67765.0,67749.0,0.014766]
[1771649098910,0.14401342,67747.0,67723.0,0.44127233]
[1771649099111,0.14327521,67740.0,67725.0,0.014771]
[1771649099410,0.014769,67735.0,67723.0,0.014771]
[1771649099612,0.14311606,67747.0,67731.0,0.01477]
[1771649099911,0.23586517,67746.0,67726.0,0.15173708]
[1771649100111,0.014767,67742.0,67716.0,0.15173708]
[1771649100413,0.00010366,67746.0,67745.0,0.014767]
[1771649100615,0.014766,67749.0,67741.0,0.014767]
[1771649100799,0.014766,67749.0,67730.0,0.05811551]
[1771649100800,0.014766,67751.0,67744.0,0.014767]
[1771649101003,0.014766,67751.0,67745.0,0.014767]
[1771649101213,0.014766,67750.0,67744.0,0.014767]
[1771649101514,0.15587997,67767.0,67741.0,0.15173708]
[1771649101817,0.014763,67764.0,67757.0,0.014764]
[1771649102115,0.014763,67763.0,67757.0,0.014764]
[1771649102299,0.014763,67764.0,67758.0,0.014764]
[1771649102718,0.014763,67763.0,67758.0,0.014764]
[1771649103018,0.014763,67764.0,67755.0,0.014764]
[1771649103213,0.014763,67763.0,67757.0,0.014764]
[1771649104118,0.014763,67763.0,67758.0,0.014764]
[1771649106329,0.014762,67765.0,67757.0,0.014764]
[1771649106531,0.014763,67764.0,67758.0,0.014764]
[1771649107232,0.014763,67764.0,67757.0,0.014764]
[1771649107727,0.01476,67776.0,67759.0,0.014763]
[1771649107933,0.014762,67768.0,67759.0,0.014763]
[1771649108433,0.014762,67765.0,67759.0,0.014763]
[1771649108631,0.014762,67765.0,67758.0,0.014764]
[1771649109028,0.014763,67764.0,67758.0,0.014764]
[1771649109231,0.014764,67757.0,67751.0,0.014765]
[1771649109623,0.014764,67758.0,67752.0,0.014765]
[1771649110129,0.014763,67760.0,67753.0,0.014765]
[1771649110723,0.014763,67760.0,67754.0,0.014765]
[1771649111531,0.014763,67760.0,67753.0,0.014765]
[1771649112826,0.014764,67759.0,67752.0,0.014765]
[1771649113334,0.014764,67757.0,67750.0,0.014765]
[1771649113532,0.014764,67758.0,67751.0,0.014765]
[1771649114637,0.014764,67759.0,67747.0,0.014766]
[1771649114829,0.014765,67754.0,67748.0,0.014766]
[1771649115028,0.014764,67756.0,67748.0,0.014766]
[1771649115429,0.014765,67755.0,67748.0,0.014766]
[1771649115725,0.014762,67767.0,67752.0,0.014765]
[1771649116040,0.014763,67761.0,67754.0,0.014765]
[1771649116235,0.014763,67760.0,67754.0,0.014765]
[1771649116737,0.014763,67763.0,67754.0,0.014765]
[1771649117137,0.014763,67762.0,67753.0,0.014765]
[1771649118440,0.014763,67762.0,67755.0,0.014764]
[1771649121245,0.014763,67761.0,67755.0,0.014764]
[1771649124043,0.014763,67761.0,67755.0,0.015604]
[1771649124233,0.014763,67761.0,67755.0,0.014764]
[1771649127145,0.014763,67761.0,67754.0,0.014765]
[1771649127344,0.014764,67758.0,67752.0,0.014765]
[1771649128046,0.014764,67759.0,67753.0,0.014765]
[1771649128447,0.014764,67759.0,67751.0,0.014765]
[1771649128448,0.014764,67759.0,67752.0,0.014765]
[1771649129143,0.014764,67759.0,67753.0,0.014765]
[1771649129952,0.014763,67760.0,67754.0,0.014765]
[1771649130954,0.014764,67757.0,67750.0,0.014765]
[1771649132050,0.19614786,67764.0,67745.0,0.18512019]
[1771649132240,0.029526,67762.0,67755.0,0.014764]
[1771649132550,0.24955484,67761.0,67755.0,0.014764]
[1771649132751,0.24955484,67760.0,67755.0,0.014764]
[1771649132944,0.029526,67762.0,67755.0,0.014764]
[1771649133145,0.24955436,67761.0,67755.0,0.014764]
[1771649133345,0.24955436,67760.0,67755.0,0.014764]
[1771649133652,0.014763,67761.0,67755.0,0.014764]
[1771649133843,0.24955413,67760.0,67755.0,0.014764]
[1771649134042,0.014763,67761.0,67755.0,0.014764]
[1771649137952,0.014762,67766.0,67758.0,0.014764]
[1771649138155,0.26359559,67765.0,67759.0,0.014764]
[1771649138352,0.24883359,67764.0,67759.0,0.014764]
[1771649138551,0.24883359,67763.0,67759.0,0.014763]
[1771649138750,0.014762,67766.0,67759.0,0.014763]
[1771649138952,0.24884416,67765.0,67759.0,0.014763]
[1771649139148,0.24884416,67764.0,67759.0,0.014763]
[1771649139352,0.24884416,67763.0,67759.0,0.014763]
[1771649139655,0.014762,67766.0,67759.0,0.029526]
[1771649139863,0.26360333,67765.0,67759.0,0.014763]
[1771649140055,0.24884133,67764.0,67759.0,0.029526]
[1771649140254,0.24884133,67763.0,67759.0,0.029526]
[1771649140458,0.014762,67765.0,67759.0,0.014763]
[1771649140657,0.24883714,67764.0,67759.0,0.014763]
[1771649140858,0.17972126,67763.0,67759.0,0.014763]
[1771649141057,0.014762,67766.0,67760.0,0.014763]
[1771649141757,0.014762,67766.0,67761.0,0.014763]
[1771649141961,0.014762,67766.0,67759.0,0.014763]
[1771649141962,0.01077126,67766.0,67760.0,0.014763]
[1771649142161,0.02553326,67766.0,67760.0,0.014763]
[1771649142358,0.014762,67767.0,67761.0,0.014763]
[1771649142562,0.014761,67769.0,67763.0,0.014763]
[1771649142757,0.014762,67768.0,67761.0,0.014763]
[1771649143059,0.014762,67768.0,67762.0,0.014763]
[1771649144256,0.014762,67767.0,67761.0,0.014763]
[1771649146256,0.014762,67767.0,67759.0,0.014764]
[1771649146762,0.014762,67767.0,67760.0,0.014763]
[1771649147367,0.014762,67766.0,67759.0,0.014764]
[1771649147566,0.014762,67767.0,67759.0,0.014764]
[1771649147756,0.014761,67772.0,67761.0,0.014763]
[1771649148062,0.014762,67768.0,67761.0,0.014763]
[1771649148357,0.029524,67768.0,67761.0,0.014763]
[1771649149263,0.014762,67767.0,67761.0,0.014763]
[1771649150364,0.014758,67784.0,67763.0,0.014763]
[1771649150365,0.014761,67770.0,67763.0,0.014763]
[1771649150664,0.014761,67769.0,67763.0,0.014763]
[1771649151264,0.014761,67771.0,67764.0,0.014762]
[1771649151966,0.014761,67771.0,67765.0,0.014762]
[1771649152368,0.014761,67771.0,67765.0,0.029524]
[1771649153072,8.8e-07,67770.0,67769.0,0.014761]
[1771649153255,0.01476,67774.0,67768.0,0.014762]
[1771649153655,0.01476,67775.0,67770.0,0.014761]
[1771649154265,0.01476,67776.0,67771.0,0.014761]
[1771649154663,0.014759,67779.0,67772.0,0.014761]
[1771649154864,0.01476,67778.0,67772.0,0.014761]
[1771649155064,0.01476,67777.0,67772.0,0.014761]
[1771649157374,0.014759,67778.0,67771.0,0.014761]
[1771649158274,0.01476,67776.0,67771.0,0.014761]
[1771649158858,0.02952,67776.0,67771.0,0.014761]
[1771649159163,0.01476,67774.0,67768.0,0.014762]
[1771649159363,0.014761,67773.0,67767.0,0.014762]
[1771649160062,0.014761,67772.0,67767.0,0.014762]
[1771649160461,0.014761,67771.0,67765.0,0.014762]
[1771649160663,0.370104,67781.0,67759.0,0.014764]
[1771649160664,0.18798347,67772.0,67759.0,0.014764]
[1771649160864,0.014763,67763.0,67757.0,0.014764]
[1771649161076,0.014763,67764.0,67758.0,0.014764]
[1771649161570,0.014762,67765.0,67759.0,0.014764]
[1771649169075,0.014763,67764.0,67758.0,0.014764]
[1771649169282,0.014762,67765.0,67758.0,0.014764]
[1771649170177,0.014762,67766.0,67759.0,0.014764]
[1771649171382,0.014762,67765.0,67759.0,0.014764]
[1771649172185,0.014762,67766.0,67759.0,0.029527]
[1771649173886,0.014762,67765.0,67759.0,0.014763]
[1771649174183,0.014762,67766.0,67759.0,0.014763]
[1771649174586,0.014762,67767.0,67760.0,0.014763]
[1771649177379,0.014762,67767.0,67761.0,0.014763]
[1771649179381,0.029524,67769.0,67761.0,0.014763]
[1771649179889,0.029524,67769.0,67762.0,0.014763]
[1771649181595,0.014762,67769.0,67762.0,0.014763]
[1771649182297,0.014761,67771.0,67763.0,0.014763]
[1771649182488,0.014761,67771.0,67764.0,0.014763]
[1771649185895,0.014761,67771.0,67765.0,0.014762]
[1771649187787,0.01476,67778.0,67769.0,0.014761]
[1771649187992,0.01476,67775.0,67769.0,0.014761]
[1771649188400,0.20807582,67774.0,67769.0,0.014761]
[1771649188603,0.01476,67775.0,67769.0,0.014761]
[1771649188900,0.20807392,67774.0,67769.0,0.014761]
[1771649189104,0.01476,67775.0,67769.0,0.014761]
[1771649189394,0.20812727,67774.0,67769.0,0.014761]
[1771649189600,0.01476,67775.0,67769.0,0.014761]
[1771649189798,0.20811872,67774.0,67769.0,0.014761]
[1771649189990,0.01476,67775.0,67769.0,0.014761]
[1771649190191,0.20811886,67774.0,67769.0,0.014761]
[1771649190390,0.01476,67775.0,67769.0,0.014761]
[1771649190693,0.014761,67773.0,67766.0,0.014762]
[1771649190899,0.20811283,67772.0,67766.0,0.014762]
[1771649191099,0.20811283,67771.0,67766.0,0.014762]
[1771649191300,0.014761,67773.0,67765.0,0.014762]
[1771649191602,0.20810812,67772.0,67766.0,0.01466047]
[1771649191901,0.20810812,67771.0,67766.0,0.01466047]
[1771649192196,0.014761,67773.0,67766.0,0.01466047]
[1771649192404,0.22286919,67772.0,67766.0,0.01466047]
[1771649192698,0.20810819,67771.0,67766.0,0.01466047]
[1771649192888,0.014761,67772.0,67766.0,0.01466047]
[1771649193090,0.20810456,67771.0,67766.0,0.01558047]
[1771649193290,0.014761,67772.0,67766.0,0.01466047]
[1771649193497,0.20810135,67771.0,67766.0,0.01466047]
[1771649193704,0.014761,67772.0,67766.0,0.01466047]
[1771649193904,0.20810135,67771.0,67766.0,0.01466047]
[1771649194201,0.014761,67772.0,67766.0,0.01466047]
[1771649194397,0.20810135,67771.0,67766.0,0.01466047]
[1771649194603,0.014761,67772.0,67766.0,0.01466047]
[1771649194801,0.20809876,67771.0,67766.0,0.01466047]
[1771649194988,0.014761,67772.0,67766.0,0.01466047]
[1771649195193,0.20809876,67771.0,67766.0,0.01466047]
[1771649195402,0.014761,67772.0,67766.0,0.01466047]
[1771649195603,0.20809646,67771.0,67766.0,0.01466047]
[1771649195803,0.014761,67772.0,67766.0,0.01466047]
[1771649196098,0.20809646,67771.0,67766.0,0.01562047]
[1771649196303,0.014761,67772.0,67766.0,0.01466047]
[1771649196505,0.20809462,67771.0,67766.0,0.01466047]
[1771649196700,0.014761,67772.0,67765.0,0.014762]
[1771649196895,0.20809462,67771.0,67765.0,0.014762]
[1771649197095,0.014761,67772.0,67765.0,0.014762]
[1771649197296,0.20809434,67771.0,67765.0,0.014762]
[1771649197590,0.014761,67772.0,67765.0,0.014762]
[1771649197789,0.20809263,67771.0,67765.0,0.014762]
[1771649197994,0.014761,67772.0,67765.0,0.014762]
[1771649198294,0.20809277,67771.0,67765.0,0.014762]
[1771649198494,0.014761,67772.0,67765.0,0.014762]
[1771649198700,0.20809094,67771.0,67765.0,0.014762]
[1771649198899,0.014761,67772.0,67765.0,0.014762]
[1771649199101,0.20809108,67771.0,67765.0,0.014762]
[1771649199300,0.014761,67772.0,67765.0,0.029524]
[1771649199499,0.20808943,67771.0,67765.0,0.029524]
[1771649199704,0.014761,67772.0,67765.0,0.029524]
[1771649199915,0.20808957,67771.0,67765.0,0.029524]
[1771649200107,0.014761,67772.0,67765.0,0.029524]
[1771649200309,0.20808971,67771.0,67766.0,0.014762]
[1771649200508,0.014761,67772.0,67766.0,0.014762]
[1771649200698,0.20808877,67771.0,67766.0,0.014762]
[1771649200898,0.014761,67772.0,67766.0,0.014762]
[1771649202408,0.014761,67772.0,67767.0,0.014762]
[1771649202805,0.014761,67772.0,67766.0,0.014762]
[1771649203199,0.014761,67770.0,67763.0,0.014763]
[1771649203410,0.014761,67770.0,67764.0,0.014762]
[1771649203614,0.014761,67770.0,67763.0,0.014763]
[1771649204009,0.014761,67770.0,67764.0,0.014763]
[1771649207311,0.029522,67770.0,67764.0,0.014763]
[1771649207615,0.014761,67769.0,67764.0,0.014763]
[1771649208716,0.014761,67769.0,67763.0,0.014763]
[1771649210315,0.014762,67768.0,67761.0,0.014763]
[1771649210616,0.014763,67763.0,67755.0,0.014764]
[1771649210818,0.014763,67764.0,67757.0,0.014764]
[1771649211004,0.014763,67764.0,67758.0,0.014764]
[1771649211209,0.014762,67765.0,67758.0,0.014764]
[1771649211409,0.014762,67765.0,67759.0,0.014764]
[1771649212015,0.029524,67765.0,67758.0,0.014764]
[1771649212619,0.014763,67764.0,67758.0,0.014764]
[1771649215312,0.014762,67766.0,67758.0,0.014764]
[1771649216423,0.014762,67766.0,67759.0,0.014763]
[1771649216808,0.014762,67766.0,67760.0,0.014763]
[1771649217417,0.014762,67766.0,67760.0,0.029526]
[1771649217617,0.014762,67766.0,67761.0,0.014763]
[1771649219526,0.014762,67766.0,67757.0,0.014764]
[1771649219724,0.014762,67765.0,67752.0,0.014765]
[1771649220026,0.014762,67766.0,67761.0,0.014763]
[1771649221527,0.029524,67766.0,67761.0,0.014763]
[1771649221726,0.014762,67766.0,67761.0,0.014763]
[1771649221914,0.029524,67766.0,67761.0,0.014763]
[1771649222438,0.014762,67766.0,67761.0,0.014763]
[1771649222623,0.014762,67766.0,67745.0,0.3308995]
[1771649222624,0.15609145,67770.0,67748.0,0.014766]
[1771649222830,0.02953,67755.0,67750.0,0.014765]
[1771649223023,0.014765,67754.0,67749.0,0.015606]
[1771649223232,0.014765,67755.0,67749.0,0.014766]
[1771649224227,0.02953,67755.0,67749.0,0.014766]
[1771649224432,0.014765,67754.0,67748.0,0.014766]
[1771649227840,0.014765,67754.0,67747.0,0.014766]
[1771649228540,0.014765,67754.0,67746.0,0.014766]
[1771649228541,0.014765,67753.0,67746.0,0.014766]
[1771649229244,0.029528,67756.0,67747.0,0.014766]
[1771649229438,0.014764,67756.0,67747.0,0.014766]
[1771649229639,0.014764,67755.0,67747.0,0.014766]
[1771649230042,0.014764,67756.0,67748.0,0.014766]
[1771649230345,0.029528,67760.0,67753.0,0.014765]
[1771649231044,0.014764,67759.0,67753.0,0.014765]
[1771649231742,0.014764,67759.0,67745.0,0.014767]
[1771649232045,0.014764,67759.0,67753.0,0.015685]
[1771649232240,0.014764,67759.0,67753.0,0.014765]
[1771649232733,0.014764,67759.0,67753.0,0.02953]
[1771649233130,0.014764,67759.0,67754.0,0.014765]
[1771649234550,0.014764,67759.0,67755.0,0.014764]
[1771649235247,0.014764,67758.0,67753.0,0.014765]
[1771649238246,0.014764,67757.0,67751.0,0.02953]
[1771649238547,0.014764,67757.0,67752.0,0.014765]
[1771649239345,0.014764,67758.0,67749.0,0.014766]
[1771649239346,0.014764,67756.0,67751.0,0.014765]
[1771649240242,0.014764,67756.0,67750.0,0.014765]
[1771649240439,0.029528,67756.0,67750.0,0.014765]
[1771649241344,0.014764,67756.0,67750.0,0.014765]
[1771649246251,0.19617425,67760.0,67750.0,0.014765]
[1771649246448,0.014762,67766.0,67748.0,0.18529444]
[1771649246449,0.014763,67762.0,67748.0,0.18529444]
[1771649246649,0.20900987,67761.0,67755.0,0.014764]
[1771649246852,0.014763,67762.0,67755.0,0.014764]
[1771649247046,0.2090098,67761.0,67755.0,0.014764]
[1771649247248,0.014763,67762.0,67755.0,0.014764]
[1771649247550,0.22379041,67761.0,67755.0,0.014764]
[1771649247750,0.014763,67761.0,67755.0,0.014764]
[1771649248154,0.014763,67761.0,67755.0,0.029528]
[1771649248349,0.014763,67761.0,67756.0,0.014764]
[1771649248851,0.014764,67759.0,67754.0,0.014765]
[1771649249051,0.014763,67760.0,67755.0,0.014764]
[1771649251247,0.014764,67759.0,67754.0,0.014765]
[1771649254553,0.014764,67758.0,67754.0,0.014765]
[1771649255256,0.014764,67757.0,67752.0,0.014765]
[1771649255848,0.014764,67758.0,67752.0,0.014765]
[1771649256048,0.014764,67758.0,67752.0,0.015605]
[1771649256252,0.014763,67760.0,67752.0,0.014765]
[1771649257058,0.014764,67757.0,67752.0,0.014765]
[1771649259256,0.014764,67757.0,67753.0,0.014765]
[1771649261558,0.014764,67758.0,67753.0,0.014765]
[1771649262758,0.014763,67760.0,67753.0,0.014765]
[1771649263060,1e-06,67759.0,67755.0,0.014764]
[1771649263258,0.014763,67761.0,67754.0,0.014765]
[1771649263462,0.014764,67759.0,67754.0,0.014765]
[1771649263849,0.014764,67758.0,67754.0,0.014765]
[1771649264049,0.014764,67759.0,67754.0,0.014765]
[1771649264459,0.014764,67758.0,67754.0,0.014765]
[1771649265263,0.014764,67759.0,67754.0,0.014765]
[1771649265651,0.014764,67758.0,67754.0,0.014765]
[1771649265859,0.014764,67758.0,67753.0,0.014765]
[1771649277063,0.014763,67761.0,67754.0,0.014765]
[1771649277262,0.014763,67760.0,67755.0,0.014764]
[1771649277464,0.014763,67761.0,67756.0,0.014764]
[1771649278564,0.014763,67760.0,67756.0,0.014764]
[1771649278757,0.014763,67760.0,67755.0,0.014764]
[1771649279570,0.014763,67760.0,67754.0,0.014765]
[1771649279571,0.014763,67763.0,67753.0,0.014765]
[1771649279759,0.014763,67762.0,67757.0,0.014764]
[1771649279954,0.014762,67765.0,67757.0,0.014764]
[1771649280160,0.014763,67763.0,67757.0,0.014764]
[1771649280470,0.014763,67762.0,67757.0,0.014764]
[1771649280671,0.014763,67763.0,67758.0,0.014764]
[1771649280875,0.18141125,67770.0,67753.0,0.18269283]
[1771649281169,0.25408555,67781.0,67750.0,0.18141125]
[1771649281170,0.014762,67767.0,67761.0,0.014763]
[1771649281469,0.029524,67767.0,67761.0,0.014763]
[1771649281669,0.014762,67766.0,67761.0,0.014763]
[1771649284373,0.13711652,67769.0,67745.0,0.3308995]
[1771649284564,0.014764,67756.0,67750.0,0.014765]
[1771649284869,0.014764,67755.0,67749.0,0.014766]
[1771649285070,0.014764,67755.0,67748.0,0.014766]
[1771649286668,0.014764,67755.0,67749.0,0.014766]
[1771649291379,0.014764,67756.0,67749.0,0.014766]
[1771649292381,0.014764,67758.0,67745.0,0.014766]
[1771649292382,0.014763,67760.0,67745.0,0.014766]
[1771649293067,0.014763,67760.0,67753.0,0.014765]
[1771649293266,0.029527,67760.0,67753.0,0.014765]
[1771649293466,0.014763,67760.0,67753.0,0.014765]
[1771649293977,0.029527,67760.0,67753.0,0.014765]
[1771649294876,0.014764,67759.0,67753.0,0.014765]
[1771649295977,0.014764,67756.0,67748.0,0.014766]
[1771649297074,0.014764,67756.0,67749.0,0.014766]
[1771649297374,0.014763,67762.0,67750.0,0.014765]
[1771649297566,0.014763,67760.0,67754.0,0.014765]
[1771649298579,0.014763,67760.0,67755.0,0.014764]
[1771649298780,0.014763,67760.0,67754.0,0.014765]
[1771649298781,0.014763,67762.0,67754.0,0.014765]
[1771649298979,0.014763,67762.0,67755.0,0.014764]
[1771649300178,0.014763,67762.0,67756.0,0.014764]
[1771649300775,0.014763,67762.0,67756.0,0.029528]
[1771649300976,0.014763,67764.0,67757.0,0.014764]
[1771649301479,0.014763,67763.0,67757.0,0.014764]
[1771649301671,0.014763,67762.0,67756.0,0.014764]
[1771649302681,0.029526,67762.0,67756.0,0.014764]
[1771649304081,0.014763,67762.0,67756.0,0.014764]
[1771649305983,0.029526,67762.0,67756.0,0.014764]
[1771649306683,0.014764,67760.0,67754.0,0.014764]
[1771649307186,0.029524,67766.0,67760.0,0.014763]
[1771649307581,0.014762,67766.0,67760.0,0.014763]
[1771649307882,0.014762,67765.0,67759.0,0.014764]
[1771649308284,0.014763,67764.0,67759.0,0.014764]
[1771649311584,0.014763,67764.0,67759.0,0.029527]
[1771649312885,0.014763,67764.0,67759.0,0.014763]
[1771649313490,0.014763,67762.0,67757.0,0.029528]
[1771649314088,0.014763,67762.0,67757.0,0.014764]
[1771649315387,0.014763,67761.0,67757.0,0.014764]
[1771649315880,0.014763,67761.0,67755.0,0.029528]
[1771649318793,0.014763,67761.0,67755.0,0.014764]
[1771649319393,0.029526,67763.0,67756.0,0.014764]
[1771649321497,0.029526,67763.0,67757.0,0.014764]
[1771649321798,0.014762,67766.0,67761.0,0.014763]
[1771649323197,0.014762,67765.0,67760.0,0.014763]
[1771649323392,0.029524,67765.0,67760.0,0.014763]
[1771649324709,0.014763,67762.0,67758.0,0.014764]
[1771649326311,0.014763,67764.0,67759.0,0.014763]
[1771649327209,0.014763,67763.0,67759.0,0.014763]
[1771649327514,0.014763,67763.0,67758.0,0.014764]
[1771649328705,0.014763,67763.0,67759.0,0.014764]
[1771649329203,0.014763,67763.0,67758.0,0.014764]
[1771649329509,0.014763,67764.0,67758.0,0.014764]
[1771649330309,0.014763,67763.0,67758.0,0.014764]
[1771649333111,0.014763,67762.0,67758.0,0.014764]
[1771649338416,0.014763,67762.0,67757.0,0.014764]
[1771649340721,0.029526,67762.0,67757.0,0.014764]
[1771649341319,0.014763,67762.0,67757.0,0.029528]
[1771649341917,0.014763,67762.0,67757.0,0.014764]
[1771649342219,0.014763,67762.0,67757.0,0.029528]
[1771649343322,0.014763,67763.0,67758.0,0.014764]
[1771649344623,0.014763,67761.0,67756.0,0.014764]
[1771649344820,0.014763,67761.0,67757.0,0.014764]
[1771649346420,0.014763,67761.0,67756.0,0.014764]
[1771649347626,0.014763,67762.0,67756.0,0.029528]
[1771649347815,0.014763,67762.0,67756.0,0.014764]
[1771649348223,0.014763,67762.0,67756.0,0.029528]
[1771649348825,0.014763,67762.0,67756.0,0.014764]
[1771649349923,0.014763,67762.0,67757.0,0.014764]
[1771649353427,0.014763,67763.0,67757.0,0.014764]
[1771649353826,0.014763,67763.0,67757.0,0.029528]
[1771649354327,0.014763,67763.0,67758.0,0.014764]
[1771649355832,0.014763,67763.0,67757.0,0.014764]
[1771649356031,0.014763,67763.0,67747.0,0.3308995]
[1771649356525,0.014763,67763.0,67749.0,0.044298]
[1771649356729,0.014763,67763.0,67757.0,0.014764]
[1771649357031,0.014763,67763.0,67758.0,0.014764]
[1771649357823,0.014763,67763.0,67759.0,0.014764]
[1771649358122,0.014763,67764.0,67759.0,0.014764]
[1771649358928,0.01376474,67764.0,67759.0,0.014764]
[1771649359827,0.014763,67764.0,67759.0,0.014764]
[1771649361426,0.014763,67764.0,67754.0,0.014765]
[1771649361634,0.014763,67761.0,67750.0,0.014765]
[1771649361930,0.014764,67760.0,67755.0,0.014764]
[1771649362723,0.014764,67759.0,67755.0,0.014764]
[1771649363435,0.014764,67759.0,67754.0,0.014765]
[1771649364737,0.014765,67755.0,67748.0,0.014766]
[1771649364943,0.014764,67756.0,67750.0,0.029531]
[1771649365127,0.014764,67757.0,67751.0,0.014765]
[1771649367227,0.014764,67757.0,67752.0,0.014765]
[1771649368135,0.014764,67758.0,67753.0,0.014765]
[1771649368831,0.029528,67758.0,67752.0,0.014765]
[1771649369335,0.014764,67758.0,67752.0,0.014765]
[1771649370538,0.014764,67758.0,67752.0,0.02953]
[1771649371637,0.014764,67758.0,67753.0,0.014765]
[1771649374436,0.014764,67759.0,67753.0,0.014765]
[1771649377340,0.014763,67761.0,67755.0,0.014764]
[1771649377938,0.014763,67761.0,67755.0,0.029528]
[1771649378238,0.014763,67761.0,67755.0,0.014764]
[1771649385043,0.014763,67761.0,67755.0,0.015724]
[1771649385243,0.014763,67761.0,67755.0,0.014764]
[1771649388053,0.014763,67761.0,67755.0,0.015684]
[1771649388252,0.014763,67761.0,67755.0,0.014764]
[1771649391050,0.014763,67761.0,67755.0,0.015604]
[1771649391257,0.014763,67761.0,67755.0,0.014764]
[1771649393364,0.014763,67760.0,67755.0,0.014764]
[1771649400463,0.014763,67761.0,67755.0,0.014764]
[1771649402166,0.014763,67760.0,67755.0,0.014764]
[1771649409575,0.014763,67760.0,67754.0,0.014765]
[1771649410477,0.014764,67758.0,67751.0,0.014765]
[1771649410668,0.014764,67758.0,67752.0,0.014765]
[1771649411973,0.014764,67758.0,67753.0,0.014765]
[1771649412774,0.014764,67759.0,67753.0,0.014765]
[1771649416975,0.014763,67760.0,67751.0,0.014765]